Cogmind - Beta 16 @@@ ROGUE MODE // 2025.12.27 @ 00:34:52 Player: Moose Result: Destroyed by PV-WLO(R) with Subdweller Machine Gun Performance ------------- Evolutions (0) 0 Regions Visited (2) 400 Robots Destroyed (11) 55 Value Destroyed (329) 329 Prototype IDs (2) 40 Alien Tech Used (0) 0 Bonus (0) 0 TOTAL SCORE: 824 Bonus ------- None Cogmind --------- Core Integrity 0/250 Matter 292/300 Energy 250/250 System Corruption 0% Temperature Cool (0) Movement Walking (190) Ox1 Location -10/Subcaves Parts ------- > --- POWER (1) -------- Ion Engine > --- PROPULSION (2) --- Aluminum Leg > --- UTILITY (2) ------ Medium Storage Unit Targeting Computer > --- WEAPON (2) ------- (None) > --- INVENTORY (10) --- Small Storage Unit Large Storage Unit Visual Processing Unit Targeting Computer Power Shielding Hacking Suite Peak State ------------ > --- POWER ------------ Light Ion Engine > --- PROPULSION ------- Aluminum Leg Aluminum Leg > --- UTILITY ---------- Small Storage Unit Targeting Computer > --- WEAPON ----------- Light Assault Rifle Light Assault Rifle > --- INVENTORY -------- Light Ion Engine Aluminum Leg Aluminum Leg Visual Processing Unit Targeting Computer Power Shielding Hacking Suite Small Laser [Rating: 8] Favorites ----------- Power Light Ion Engine Engine Light Ion Engine Propulsion Aluminum Leg Treads Light Treads Leg Aluminum Leg Wheel Wheel Utility Targeting Computer Storage Small Storage Unit Processor Targeting Computer Weapon Light Assault Rifle Energy Gun Small Laser Ballistic Gun Light Assault Rifle Build | -11 -10 -10 ------- Run | Yrd Mat Sub Slots Evolved . | . . . Power . | . . . Propulsion . | . . . Utility . | . . . Weapon . | . . . Parts Attached 20 | 6 10 4 Power 4 | 1 2 1 Engine 4 | 1 2 1 Core . | . . . Reactor . | . . . Propulsion 9 | 2 4 3 Treads 2 | . 2 . Leg 5 | . 2 3 Wheel 2 | 2 . . Hover . | . . . Flight . | . . . Utility 4 | 1 3 . Device . | . . . Storage 3 | 1 2 . Processor 1 | . 1 . Hackware . | . . . Protection . | . . . Artifact . | . . . Weapon 3 | 2 1 . Energy Gun 1 | . 1 . Energy Cannon . | . . . Ballistic Gun 2 | 2 . . Ballistic Cannon . | . . . Launcher . | . . . Special Weapon . | . . . Impact Weapon . | . . . Slashing Weapon . | . . . Piercing Weapon . | . . . Special Melee Weapon . | . . . Unidentified Prototypes . | . . . Parts Lost 8 | . 1 7 Power 1 | . . 1 Propulsion 4 | . . 4 Utility . | . . . Weapon 3 | . 1 2 Highest Loss Streak 7 | . 1 7 To Critical Strikes . | . . . Average Backups 7 | 3 7 9 Power . | . . . Propulsion 3 | 1 3 2 Utility 3 | . 2 6 Weapon . | . . . Tool/Special . | . . . Unused Backups 9 | . 5 4 Power 2 | . 2 . Propulsion . | . . . Utility 6 | . 2 4 Weapon 1 | . 1 . Tool/Special . | . . . Average Slot Usage (%) 96 | . 96 95 Engine 13 | . 14 13 Treads 1 | . 1 . Leg 22 | . 22 24 Wheel 3 | . 4 . Storage 14 | . 14 14 Processor 11 | . 11 14 Energy Gun 4 | . 2 14 Ballistic Gun 22 | . 25 13 Peak Build Rating 8 | 6 8 8 Average Rating 7 | 4 7 7 On Entrance 4 | . 6 8 Avg Prop Armor Cover (%) . | . . . Naked Turns . | . . . Heaviest Build 25 | 10 25 15 Greatest Support 40 | 20 40 20 Greatest Overweight (x) 4 | . 1 4 Average Overweight (x) . | . . . Largest Inventory Capacity 15 | 8 15 10 Average Capacity 8 | 7 8 10 Most Carried 10 | 6 10 10 Average Carried 7 | 3 7 9 Final Capacity 10 | 8 10 10 Final Carried 10 | 6 10 6 Class Distribution -------------------- 100% | Mutant Dominant Class ---------------- Mutant | -10/Materials Mutant | -10/Subcaves Resources | -11 -10 -10 ----------- Run | Yrd Mat Sub Matter Collected 464 | 212 252 . Remotely . | . . . Salvage Created 408 | . 358 50 Parts 23 | . 19 4 Haulers Intercepted . | . . . Recyclers Shooed . | . . . Parts Field Recycled . | . . . Retrieved Matter . | . . . Parts Self-Destructed 4 | . . 4 Prevented . | . . . Parts Restored . | . . . Kills | -11 -10 -10 ------- Run | Yrd Mat Sub Combat Hostiles Destroyed 8 | . 7 1 Guns 8 | . 7 1 Classes Destroyed 5 | . 4 1 Recycler 1 | . 1 . Operator 1 | . 1 . Watcher 1 | . 1 . Grunt 7 | . 7 . Subdweller 1 | . . 1 Best Kill Streak 3 | . 3 1 Combat Bots Only 2 | . 2 1 Max Kills in Single Turn 1 | . 1 1 Gunslinging . | . . . Exploded . | . . . Melee . | . . . Uniques/NPCs Destroyed . | . . . Combat | -11 -10 -10 -------- Run | Yrd Mat Sub Hostile Shots Fired 95 | . 56 39 Missed 29 | . 17 12 Hits 66 | . 39 27 Projectile 66 | . 39 27 Critical Strikes 2 | . . 2 Damage Taken 1129 | . 454 675 Core 251 | . 56 195 Absorbed by Shields . | . . . Core Remaining (%) 100 | 100 . . Volleys Fired 63 | . 46 17 Largest 2 | . 2 2 Hottest 60 | . 60 60 Shots Fired 122 | . 92 30 Gun 122 | . 92 30 Cannon . | . . . Launcher . | . . . Special . | . . . Kinetic 103 | . 90 13 Thermal 19 | . 2 17 Explosive . | . . . Electromagnetic . | . . . Robot Hit Streak 14 | . 14 12 Robot Miss Streak 3 | . 3 2 Penetration Max . | . . . Secondary Targets . | . . . Shots Hit Robots 87 | . 64 23 Core Hits 28 | . 23 5 Critical Kills . | . . . Critical Parts Destroyed . | . . . Critical Strikes . | . . . Melee Attacks . | . . . Impact . | . . . Slashing . | . . . Piercing . | . . . Sneak Attacks . | . . . Combat Hostiles . | . . . Follow-up Attacks . | . . . Damage Inflicted 770 | . 547 223 Guns 752 | . 530 222 Cannons . | . . . Explosions . | . . . Melee . | . . . Ramming 18 | . 17 1 Kinetic 609 | . 518 91 Thermal 143 | . 12 131 Explosive . | . . . Electromagnetic . | . . . Impact . | . . . Slashing . | . . . Piercing . | . . . Highest Corruption . | . . . Average Corruption . | . . . Corruption Purged . | . . . Corruption Blocked . | . . . Overload Shots . | . . . Overflow Damage . | . . . Projectiles . | . . . Explosions . | . . . Melee . | . . . Knockbacks . | . . . Impact . | . . . Kinetic . | . . . Secondary . | . . . Self-Inflicted Damage . | . . . Shots . | . . . Rammed . | . . . Targets Rammed 8 | . 4 4 Kicked 7 | . 3 4 Crushed 1 | . 1 . Highest Temperature 244 | . 30 244 Average Temperature 30 | . 9 104 Received Heat Transfer 628 | . 252 376 Siege Activations . | . . . Martial Activations . | . . . Shielding Activations . | . . . Robots Disrupted . | . . . Combat Hostiles . | . . . Robots Corrupted . | . . . Combat Hostiles . | . . . Parts Fried . | . . . Impact Corruptions . | . . . Robots Melted . | . . . Combat Hostiles . | . . . Parts Melted . | . . . Heat Transferred 325 | . 25 300 Parts Sabotaged . | . . . Parts Stolen . | . . . Parts Stripped . | . . . Power Chain Reactions . | . . . Alert | -11 -10 -10 ------- Run | Yrd Mat Sub Maximum Alert Level . | . . . Low Security (%) 100 | 100 100 . Level 1 . | . . . Level 2 . | . . . Level 3 . | . . . Level 4 . | . . . Level 5 . | . . . High Security . | . . . Max Security . | . . . Peak Influence 51 | . 51 . Initial . | . . . Average 9 | . 10 . Influence Increases 213 | . 213 . Destroy 0b10 Robot/C 140 | . 140 . Destroy 0b10 Robot/NC 15 | . 15 . Destroy Leader 42 | . 42 . Successful Hack 16 | . 16 . Influence Decreases 213 | . 213 . Time Decay 213 | . 213 . Squads Dispatched 3 | . 3 . Investigation 1 | . 1 . Extermination . | . . . Reinforcement 2 | . 2 . Assault . | . . . Garrison . | . . . Intercept . | . . . Searches Triggered . | . . . Construction Impeded . | . . . Haulers Reinforced . | . . . Active Scanning Responses . | . . . Cargo Convoy Interrupts . | . . . Stealth | -11 -10 -10 --------- Run | Yrd Mat Sub Distress Signals . | . . . Communications Jammed . | . . . Distress Signals . | . . . Times Spotted 16 | . 13 3 Peak Tracking Total 4 | . 4 2 Tactical Retreats . | . . . Traps | -11 -10 -10 ------- Run | Yrd Mat Sub Traps Triggered . | . . . Indirectly . | . . . Trap Hack Attempts . | . . . Triggered . | . . . Disarmed . | . . . Reprogrammed . | . . . Reused . | . . . Traps Extracted . | . . . Installed . | . . . Triggered . | . . . Machines | -11 -10 -10 ---------- Run | Yrd Mat Sub Machines Disabled . | . . . Max in Single Turn . | . . . Machines Repaired . | . . . Machines Dismantled . | . . . Machines Sabotaged . | . . . Overloaded Fab Kills . | . . . Hacking | -11 -10 -10 --------- Run | Yrd Mat Sub Machines Accessed 5 | . 5 . Terminals 5 | . 5 . Fabricators . | . . . Repair Stations . | . . . Recycling Units . | . . . Scanalyzers . | . . . Garrison Access . | . . . Total Hacks 14 | . 14 . Successful 6 | . 6 . Failed 8 | . 8 . Catastrophic . | . . . Database Lockouts . | . . . Manual . | . . . Terminals 14 | . 14 . Fabricators . | . . . Repair Stations . | . . . Recycling Units . | . . . Scanalyzers . | . . . Garrison Access . | . . . Terminal Hacks 6 | . 6 . Prototype ID Bank 1 | . 1 . Emergency Access Points 1 | . 1 . Dispatch Records 1 | . 1 . Surveillance Status 1 | . 1 . Registered Components 1 | . 1 . Zone Layout 1 | . 1 . Fabricator Hacks . | . . . Repair Station Hacks . | . . . Recycling Unit Hacks . | . . . Scanalyzer . | . . . Garrison Access Hacks . | . . . Unauthorized Hacks . | . . . Terminals . | . . . Fabricators . | . . . Repair Stations . | . . . Recycling Units . | . . . Scanalyzers . | . . . Garrison Access . | . . . Data Cores Recovered . | . . . Used . | . . . Hacking Detections 4 | . 4 . Full Trace Events 2 | . 2 . Feedback Events . | . . . Feedback Blocked . | . . . Robot Schematics Acquired . | . . . Robots Built . | . . . Authchips . | . . . Time . | . . . Total Robot Build Rating . | . . . Part Schematics Acquired . | . . . Parts Built . | . . . Authchips . | . . . Time . | . . . Total Part Build Rating . | . . . Part Studies Acquired . | . . . Parts Repaired . | . . . Time . | . . . Parts Recycled . | . . . Recycled Matter . | . . . Retrieved Matter . | . . . Retrieved Components . | . . . Parts Scanalyzed . | . . . Part Schematics Acquired . | . . . Parts Damaged . | . . . Bothacking | -11 -10 -10 ------------ Run | Yrd Mat Sub Used RIF Installer . | . . . Robots Hacked . | . . . Non-combat . | . . . Combat . | . . . Robot Hacks Applied . | . . . Relay Couplers Released . | . . . Fabnet Peak Effective % . | . . . Robots Rewired . | . . . Allies Hacked . | . . . Hacks Repelled . | . . . Allies | -11 -10 -10 -------- Run | Yrd Mat Sub Total Allies . | . . . Largest Group . | . . . Highest-Rated Group . | . . . Highest-Rated Ally . | . . . Total Orders . | . . . Ally Attacks . | . . . Total Damage . | . . . Kills . | . . . Allies Corrupted . | . . . Allies Melted 1 | . . 1 Intel | -11 -10 -10 ------- Run | Yrd Mat Sub Active Infowar (turns) . | . . . Robot Analysis Total . | . . . Derelict Logs Recovered . | . . . Drone Launches . | . . . Drone Recoveries . | . . . Exploration | -11 -10 -10 ------------- Run | Yrd Mat Sub Turns Passed 1207 | 72 891 244 Spaces Moved 875 | 69 654 152 Core 6 | 2 . 4 Treads 13 | . 13 . Legs 637 | . 489 148 Wheels 219 | 67 152 . Hover . | . . . Flight . | . . . Fastest Speed 50 | 50 80 120 Average Speed 111 | 79 111 123 Slowest Speed 250 | 80 190 250 Overloaded Moves . | . . . Propulsion Burnouts . | . . . Robots Hopped . | . . . Potential Cave-ins . | . . . Cave-ins Triggered . | . . . Exploration Rate (%) 20 | 4 42 14 Regions Visited 2 Branch Regions 1 Pre-discovered Areas . | . . . Known Exits Taken . | . . . Unknown Exits Taken 2 | 1 1 . Scrap Searched . | . . . Spaces Dug . | . . . Terrain Destroyed . | . . . Melee . | . . . Projectile . | . . . AOE . | . . . Terrain Rammed . | . . . Walls Destroyed . | . . . Machines Disabled . | . . . Actions | -11 -10 -10 --------- Run | Yrd Mat Sub Total 1006 | 86 743 177 Wait . | . . . Move 873 | 68 653 152 Hop . | . . . Pick Up 29 | 12 17 . Fast Attach . | . . . Attach 12 | 6 2 4 Detach . | . . . Swap 10 | . 10 . Drop 11 | . 11 . Fire 63 | . 46 17 Melee . | . . . Ram . | . . . Kick 7 | . 3 4 Crush 1 | . 1 . Escape Stasis . | . . . Rewire . | . . . Trap . | . . . Miscellaneous . | . . . Route ------- -11/Scrapyard -10/Materials (discovered 2 exits: [*Mat] / [*Sub]) -10/Subcaves History --------- Turn | Location | Event 6 | -11/Scrapyard | Discovered new exit (range 15) 73 | -11/Scrapyard | Entered Materials 246 | -10/Materials | Discovered new exit (range 12) 316 | -10/Materials | Build established: Mutant 431 | -10/Materials | Discovered new exit (range 5) 964 | -10/Materials | Entered Subcaves 965 | -10/Subcaves | Approached by a straggling Scientist 1185 | -10/Subcaves | Core integrity fell below 50% 1207 | -10/Subcaves | Core integrity fell below 20% 1208 | -10/Subcaves | Destroyed by PV-WLO(R) with Subdweller Machine Gun Last Messages --------------- I can... The group I got separated from was talking about a shortcut back to the UFD." AF-WB4(c): "I think it's somewhere north of here" AF-WB4(c): "I think it's somewhere northwest of here" BW-S98(R) emerges from the Twisted Machinery. BB-KT6(R) destroyed. Aluminum Leg destroyed. AF-WB4(c) suffers critical hit (Meltdown). Lgt. Ion Engine destroyed. Critical hit (Meltdown: +250). Lgt. Assault Rifle destroyed. Subatomizers dissect the Tech Extrapolator. Aluminum Leg destroyed. Kicked PV-WLO(R). Aluminum Leg destroyed. Sml. Laser destroyed. Kicked PV-WLO(R) out of the way. Kicked PV-WLO(R). Kicked PV-WLO(R) out of the way. Map ----- +----------------------------------------------------+ | ?????????????????????????????????????????????????? | | ?????????????????????????????????????????????????? | | ?????????????????????????????????????????????????? | | ?????????????????????????????????????????????????? | | ?????????????????????????????????????????????????? | | ?????????????????????????????????????????????????? | | ?????????????????????????????????????????????????? | | ???????????????????????????? ????????????????????? | | ????????????????????????? ? #???????????????????? | | ????????????????????????"" " #???????????????????? | | ??????????????????# "???" " #???????????????????? | | ????????????????" """" " ???????????????????? | | ????????????????" """ ????????????????????? | | ??????????????? ? =[ "" ????????????????????? | | ???????????????? %& ????????????????????? | | ????????????????# " & #????????????????????? | | ????????????????# " #????????????????????? | | ?????????????????# #????????????????????? | | ??????????????????# # #????????????????????? | | ??????????????????# # #????????????????????? | | ??????????????????# ?# ##???????????????????? | | ??????????????????## ### #???????????????????? | | ??????????????????# #???????????????????? | | ??????????????????## #???????????????????? | | ???????????????????# ## #R ##???????????????????? | | ??????????????????????## @%!##???????????????????? | | ????????????????????### R! ##??????????????????? | | ????????????????????# #??????????????????? | | ???????????????????## ##?????????????????? | | ??????????????????## #?????????????????? | | ?????????????????## #?????????????????? | | ?????????????????# ##?????????????????? | | ?????????????????#### ##?????????????????? | | ????????????????????# ##????????????????? | | ????????????????????# ## #????????????????? | | ????????????????????## #? #????????????????? | | ?????????????????????## ## #????????????????? | | ???????????????????#### ####?????????????? | | ??????????????????## ##????????????? | | ??????????????????# #????????????? | | ??????????????????# #####????????????? | | ??????????????????# ##????????????????? | | ????????????????# ##????????????????? | | ????????????????# ### #????????????????? | | ????????????????# #??# #????????????????? | | ?????????######## #??## ####?????????????? | | ?????????# ## #??## #?????????????? | | ????????## #####???# " ##?????????????? | | ????????# "##?###?# ## " #??????????????? | | ????????# ""###"### ###? "##??????????????? | +----------------------------------------------------+ Best States ------------- Heat Dissipation 25 Energy Generation 10 Energy Capacity 250 Matter Stores 300 Matter Capacity 300 Sight Range 16 Terrain Scan Density 10 Evasion (%) 55 Targeting Accuracy 5 Recoil Reduction 2 Item Schematics ----------------- None Robot Schematics ------------------ None Fabricated ------------ Nothing Repaired ---------- Nothing Studied --------- None Alien Tech Used ----------------- None Achievements -------------- None Challenges ------------ None Game ------ Seed FrostSixReconstructor Manual? 0 Play Time 00:15:38 Cumulative 9.7 hours Start 2025.12.27 @ 00:19:33 End 2025.12.27 @ 00:34:52 Sessions 1 Manual Loads 0 Difficulty Rogue Special Mode None Game No. 27 Rogue 27 Adventurer 0 Explorer 0 Win Type - Total 0 Types 0/0/0/0/0/0/0/0/0/0 Lore% 4 Gallery% 13 Achievement% 12 Wizard Run 0 Options --------- Layout 1 ASCII 0 Keyboard 0 Movement Arrows Keybinds 0 Fullscreen 1 Font 16/SmallcapsGlow Map View 55x38 Zoom Use 51% Tactical HUD 0 Map Filters NONE Filters NONE Steam 1 RUN: 0581e2ee-dca7-4dd4-b2a0-2e3308d268a6